Cogmind - Beta 17 @@@ ROGUE MODE // 2026.06.22 @ 22:57:29 Player: WetterLettuce Result: Self-destructed Performance ------------- Evolutions (0) 0 Regions Visited (4) 800 Robots Destroyed (11) 55 Value Destroyed (262) 262 Prototype IDs (24) 480 Alien Tech Used (0) 0 Bonus (300) 300 TOTAL SCORE: 1897 Bonus ------- Aligned with FarCom 300 Cogmind --------- Core Integrity 116/250 Matter 300/300 Energy 125/125 System Corruption 0% Temperature Cool (0) Movement Walking (120) Location -9/Mines Parts ------- > --- POWER (1) -------- Light Ion Engine > --- PROPULSION (2) --- Aluminum Leg > --- UTILITY (2) ------ (None) > --- WEAPON (2) ------- Light Assault Rifle Light Assault Rifle > --- INVENTORY (5) ---- Improved Medium Laser YOLO Cannon EMP Blaster Peak State ------------ > --- POWER ------------ Ion Engine > --- PROPULSION ------- Aluminum Leg Aluminum Leg > --- UTILITY ---------- Improved Heat Sink Small Storage Unit > --- WEAPON ----------- Improved Medium Laser Assault Rifle > --- INVENTORY -------- Light Ion Engine Aluminum Leg Aluminum Leg Improved Medium Laser Improved Medium Laser Light Assault Rifle Light Assault Rifle Rocket Launcher [Rating: 12] Favorites ----------- Power Ion Engine Engine Ion Engine Propulsion Aluminum Leg Leg Aluminum Leg Utility Small Storage Unit Device Improved Heat Sink Storage Small Storage Unit Weapon Light Assault Rifle Energy Gun Improved Medium Laser Ballistic Gun Light Assault Rifle Build | -11 -10 -10 -10 -9 ------- Run | Yrd Mat Min Exi Min Slots Evolved . | . . . . . Power . | . . . . . Propulsion . | . . . . . Utility . | . . . . . Weapon . | . . . . . Parts Attached 11 | 7 1 1 2 . Power 2 | 1 . . 1 . Engine 2 | 1 . . 1 . Core . | . . . . . Reactor . | . . . . . Propulsion 3 | 2 . . 1 . Treads . | . . . . . Leg 3 | 2 . . 1 . Wheel . | . . . . . Hover . | . . . . . Flight . | . . . . . Utility 2 | 1 . 1 . . Device 1 | . . 1 . . Storage 1 | 1 . . . . Processor . | . . . . . Hackware . | . . . . . Protection . | . . . . . Artifact . | . . . . . Weapon 4 | 3 1 . . . Energy Gun 1 | . 1 . . . Energy Cannon . | . . . . . Ballistic Gun 3 | 3 . . . . Ballistic Cannon . | . . . . . Launcher . | . . . . . Special Weapon . | . . . . . Impact Weapon . | . . . . . Slashing Weapon . | . . . . . Piercing Weapon . | . . . . . Special Melee Weapon . | . . . . . Unidentified Prototypes 1 | . 1 . . . Parts Lost 2 | . . 2 . . Power . | . . . . . Propulsion 2 | . . 2 . . Utility . | . . . . . Weapon . | . . . . . Highest Loss Streak 2 | . . 2 . . To Critical Strikes . | . . . . . Average Backups 4 | . 4 7 2 2 Power . | . 1 1 . . Propulsion . | . . 1 . . Utility . | . . . . . Weapon 3 | . 3 4 2 2 Tool/Special . | . . . . . Unused Backups 5 | . . 3 . 2 Power . | . . . . . Propulsion 1 | . . 1 . . Utility . | . . . . . Weapon 4 | . . 2 . 2 Tool/Special . | . . . . . Average Slot Usage (%) 67 | . 85 85 45 57 Engine 12 | . 14 13 11 14 Leg 20 | . 28 27 11 14 Device 1 | . . 3 . . Storage 7 | . 14 13 . . Energy Gun 7 | . 12 13 . . Ballistic Gun 18 | . 15 13 22 28 Peak Build Rating 12 | 6 8 12 6 6 Average Rating 7 | 4 7 9 4 6 On Entrance 4 | . 6 8 . 6 Avg Prop Armor Cover (%) . | . . . . . Naked Turns 79 | . . 11 68 . Heaviest Build 16 | 13 15 16 5 5 Greatest Support 20 | 20 20 20 10 10 Greatest Overweight (x) 1 | . . 1 . . Average Overweight (x) . | . . . . . Largest Inventory Capacity 8 | 8 8 8 5 5 Average Capacity 6 | 7 8 7 5 5 Most Carried 8 | 2 5 8 5 4 Average Carried 4 | . 4 7 3 3 Final Capacity 8 | 8 8 5 5 5 Final Carried 5 | 2 5 5 3 4 Class Distribution -------------------- 100% | Mutant Dominant Class ---------------- Mutant | -10/Materials Mutant | -10/Mines Mutant | -10/Exiles Mutant | -9/Mines Resources | -11 -10 -10 -10 -9 ----------- Run | Yrd Mat Min Exi Min Matter Collected 402 | 217 20 125 . 40 Remotely . | . . . . . Salvage Created 269 | . 36 233 . . Parts 22 | . 3 19 . . Haulers Intercepted . | . . . . . Recyclers Shooed . | . . . . . Parts Field Recycled . | . . . . . Retrieved Matter . | . . . . . Parts Self-Destructed . | . . . . . Prevented . | . . . . . Parts Restored . | . . . . . Kills | -11 -10 -10 -10 -9 ------- Run | Yrd Mat Min Exi Min Combat Hostiles Destroyed 11 | . 3 8 . . Guns 11 | . 3 8 . . Classes Destroyed 2 | . 1 1 . . Swarmer 7 | . 3 4 . . Grunt 4 | . . 4 . . Best Kill Streak 3 | . 3 3 . . Combat Bots Only 3 | . 3 3 . . Max Kills in Single Turn 2 | . 1 2 . . Gunslinging 1 | . . 1 . . Exploded . | . . . . . Melee . | . . . . . Uniques/NPCs Destroyed . | . . . . . Combat | -11 -10 -10 -10 -9 -------- Run | Yrd Mat Min Exi Min Hostile Shots Fired 63 | . 8 55 . . Missed 22 | . 3 19 . . Hits 41 | . 5 36 . . Projectile 41 | . 5 36 . . AOE 2 | . . 2 . . Damage Taken 573 | . 41 532 . . Core 134 | . 8 126 . . Absorbed by Shields . | . . . . . Core Remaining (%) 100 | 100 . . . . Volleys Fired 24 | . 5 19 . . Largest 2 | . 2 2 . . Hottest 76 | . 76 76 . . Shots Fired 48 | . 10 38 . . Gun 48 | . 10 38 . . Cannon . | . . . . . Launcher . | . . . . . Special . | . . . . . Kinetic 24 | . 5 19 . . Thermal 24 | . 5 19 . . Explosive . | . . . . . Electromagnetic . | . . . . . Robot Hit Streak 8 | . 2 8 . . Robot Miss Streak 4 | . 2 4 . . Penetration Max . | . . . . . Secondary Targets 4 | . 1 3 . . Max Gunslinging Chain 1 | . 1 1 . . Shots Hit Robots 27 | . 5 22 . . Core Hits 14 | . 3 11 . . Critical Kills . | . . . . . Critical Parts Destroyed . | . . . . . Critical Strikes . | . . . . . Melee Attacks . | . . . . . Impact . | . . . . . Slashing . | . . . . . Piercing . | . . . . . Sneak Attacks . | . . . . . Combat Hostiles . | . . . . . Follow-up Attacks . | . . . . . Damage Inflicted 416 | . 67 349 . . Guns 416 | . 67 349 . . Cannons . | . . . . . Explosions . | . . . . . Melee . | . . . . . Ramming . | . . . . . Kinetic 142 | . 49 93 . . Thermal 274 | . 18 256 . . Explosive . | . . . . . Electromagnetic . | . . . . . Impact . | . . . . . Slashing . | . . . . . Piercing . | . . . . . Highest Corruption . | . . . . . Average Corruption . | . . . . . Corruption Purged . | . . . . . Corruption Blocked . | . . . . . Overload Shots . | . . . . . Overflow Damage . | . . . . . Projectiles . | . . . . . Explosions . | . . . . . Melee . | . . . . . Knockbacks . | . . . . . Impact . | . . . . . Kinetic . | . . . . . Secondary . | . . . . . Self-Inflicted Damage . | . . . . . Shots . | . . . . . Rammed . | . . . . . Targets Rammed . | . . . . . Kicked . | . . . . . Crushed . | . . . . . Highest Temperature 237 | . 75 237 . . Average Temperature 77 | . 37 88 . . Received Heat Transfer 120 | . . 120 . . Siege Activations . | . . . . . Martial Activations . | . . . . . Shielding Activations . | . . . . . Robots Disrupted . | . . . . . Combat Hostiles . | . . . . . Robots Corrupted . | . . . . . Combat Hostiles . | . . . . . Parts Fried . | . . . . . Impact Corruptions . | . . . . . Robots Melted . | . . . . . Combat Hostiles . | . . . . . Parts Melted . | . . . . . Heat Transferred 592 | . 37 555 . . Parts Sabotaged . | . . . . . Parts Stolen . | . . . . . Parts Stripped . | . . . . . Power Chain Reactions . | . . . . . Alert | -11 -10 -10 -10 -9 ------- Run | Yrd Mat Min Exi Min Maximum Alert Level . | . . . . . Low Security (%) 100 | 100 100 100 . 100 Level 1 . | . . . . . Level 2 . | . . . . . Level 3 . | . . . . . Level 4 . | . . . . . Level 5 . | . . . . . High Security . | . . . . . Max Security . | . . . . . Peak Influence 126 | . 100 126 . . Initial 31 | . . 31 . . Average 50 | . 17 73 . . Influence Increases 350 | . 105 245 . . Destroy 0b10 Robot/C 220 | . 60 160 . . Destroy Leader 50 | . 10 40 . . Successful Hack 5 | . 5 . . . Disable Machine 45 | . 30 15 . . Lose Combat Pursuer 30 | . . 30 . . Influence Decreases 350 | . 25 239 86 . Entered New Map 135 | . . 49 86 . Time Decay 195 | . 25 170 . . Lost Part 20 | . . 20 . . Squads Dispatched 1 | . 1 . . . Investigation . | . . . . . Extermination . | . . . . . Reinforcement 1 | . 1 . . . Assault . | . . . . . Garrison . | . . . . . Intercept . | . . . . . Searches Triggered . | . . . . . Construction Impeded . | . . . . . Haulers Reinforced . | . . . . . Active Scanning Responses . | . . . . . Cargo Convoy Interrupts . | . . . . . Stealth | -11 -10 -10 -10 -9 --------- Run | Yrd Mat Min Exi Min Distress Signals . | . . . . . Communications Jammed . | . . . . . Distress Signals . | . . . . . Times Spotted 37 | . 4 33 . . Peak Tracking Total 18 | . 4 18 . . Tactical Retreats 1 | . . 1 . . Traps | -11 -10 -10 -10 -9 ------- Run | Yrd Mat Min Exi Min Traps Triggered . | . . . . . Indirectly . | . . . . . Trap Hack Attempts . | . . . . . Triggered . | . . . . . Disarmed . | . . . . . Reprogrammed . | . . . . . Reused . | . . . . . Traps Extracted . | . . . . . Installed . | . . . . . Triggered . | . . . . . Machines | -11 -10 -10 -10 -9 ---------- Run | Yrd Mat Min Exi Min Machines Disabled 3 | . 2 1 . . Max in Single Turn 1 | . 1 1 . . Machines Repaired . | . . . . . Machines Dismantled . | . . . . . Machines Sabotaged . | . . . . . Overloaded Fab Kills . | . . . . . Hacking | -11 -10 -10 -10 -9 --------- Run | Yrd Mat Min Exi Min Machines Accessed 6 | . 3 . 3 . Terminals 3 | . 3 . . . Fabricators . | . . . . . Repair Stations . | . . . . . Recycling Units . | . . . . . Scanalyzers . | . . . . . Garrison Access . | . . . . . Total Hacks 37 | . 10 . 27 . Successful 32 | . 5 . 27 . Failed 5 | . 5 . . . Catastrophic . | . . . . . Database Lockouts . | . . . . . Manual 9 | . 8 . 1 . Terminals 10 | . 10 . . . Fabricators . | . . . . . Repair Stations . | . . . . . Recycling Units . | . . . . . Scanalyzers . | . . . . . Garrison Access . | . . . . . Terminal Hacks 28 | . 1 . 27 . Record 26 | . . . 26 . Zone Layout 1 | . 1 . . . Proto ID Catalog 1 | . . . 1 . Fabricator Hacks . | . . . . . Repair Station Hacks . | . . . . . Recycling Unit Hacks . | . . . . . Scanalyzer . | . . . . . Garrison Access Hacks . | . . . . . Unauthorized Hacks 4 | . 4 . . . Terminals 4 | . 4 . . . Botnet 3 | . 3 . . . Operators 1 | . 1 . . . Fabricators . | . . . . . Repair Stations . | . . . . . Recycling Units . | . . . . . Scanalyzers . | . . . . . Garrison Access . | . . . . . Data Cores Recovered . | . . . . . Used . | . . . . . Hacking Detections 3 | . 3 . . . Full Trace Events . | . . . . . Feedback Events . | . . . . . Feedback Blocked . | . . . . . Robot Schematics Acquired . | . . . . . Robots Built . | . . . . . Authchips . | . . . . . Time . | . . . . . Total Robot Build Rating . | . . . . . Part Schematics Acquired . | . . . . . Parts Built . | . . . . . Authchips . | . . . . . Time . | . . . . . Total Part Build Rating . | . . . . . Part Studies Acquired . | . . . . . Parts Repaired . | . . . . . Time . | . . . . . Parts Recycled . | . . . . . Recycled Matter . | . . . . . Retrieved Matter . | . . . . . Retrieved Components . | . . . . . Parts Scanalyzed . | . . . . . Part Schematics Acquired . | . . . . . Parts Damaged . | . . . . . Bothacking | -11 -10 -10 -10 -9 ------------ Run | Yrd Mat Min Exi Min Used RIF Installer . | . . . . . Robots Hacked . | . . . . . Non-combat . | . . . . . Combat . | . . . . . Robot Hacks Applied . | . . . . . Relay Couplers Released . | . . . . . Fabnet Peak Effective % . | . . . . . Robots Rewired . | . . . . . Allies Hacked . | . . . . . Hacks Repelled . | . . . . . Allies | -11 -10 -10 -10 -9 -------- Run | Yrd Mat Min Exi Min Total Allies . | . . . . . Largest Group . | . . . . . Highest-Rated Group . | . . . . . Highest-Rated Ally . | . . . . . Total Orders . | . . . . . Ally Attacks . | . . . . . Total Damage . | . . . . . Kills . | . . . . . Allies Corrupted . | . . . . . Allies Melted . | . . . . . Intel | -11 -10 -10 -10 -9 ------- Run | Yrd Mat Min Exi Min Active Infowar (turns) . | . . . . . Robot Analysis Total . | . . . . . Derelict Logs Recovered 2 | . . 2 . . Drone Launches . | . . . . . Drone Recoveries . | . . . . . Exploration | -11 -10 -10 -10 -9 ------------- Run | Yrd Mat Min Exi Min Turns Passed 961 | 58 141 357 395 10 Spaces Moved 793 | 44 102 236 404 7 Core 167 | 10 . 23 134 . Treads . | . . . . . Legs 626 | 34 102 213 270 7 Wheels . | . . . . . Hover . | . . . . . Flight . | . . . . . Fastest Speed 50 | 50 120 50 50 120 Average Speed 105 | 104 120 113 96 120 Slowest Speed 190 | 120 120 190 120 120 Overloaded Moves . | . . . . . Propulsion Burnouts . | . . . . . Robots Hopped . | . . . . . Potential Cave-ins . | . . . . . Cave-ins Triggered . | . . . . . Exploration Rate (%) 39 | 3 25 74 88 5 Regions Visited 4 Branch Regions 3 Pre-discovered Areas 1 | . . . 1 . Known Exits Taken . | . . . . . Unknown Exits Taken 4 | 1 1 1 1 . Scrap Searched 2 | . . 1 . 1 Spaces Dug . | . . . . . Terrain Destroyed . | . . . . . Melee . | . . . . . Projectile . | . . . . . AOE . | . . . . . Terrain Rammed . | . . . . . Walls Destroyed . | . . . . . Machines Disabled . | . . . . . Actions | -11 -10 -10 -10 -9 --------- Run | Yrd Mat Min Exi Min Total 864 | 52 110 286 408 8 Wait 28 | . . 28 . . Move 789 | 43 101 235 403 7 Hop . | . . . . . Pick Up 10 | 2 3 3 1 1 Fast Attach 7 | 6 . 1 . . Attach 4 | . . . 4 . Detach . | . . . . . Swap 2 | 1 1 . . . Drop . | . . . . . Fire 24 | . 5 19 . . Melee . | . . . . . Ram . | . . . . . Kick . | . . . . . Crush . | . . . . . Escape Stasis . | . . . . . Rewire . | . . . . . Trap . | . . . . . Miscellaneous . | . . . . . Route ------- -11/Scrapyard -10/Materials (discovered 2 exits: [*Mat] / [*Min]) -10/Mines (discovered 3 exits: [*Mat x2] / *Exi) -10/Exiles -9/Mines History --------- Turn | Location | Event 8 | -11/Scrapyard | Discovered new exit (range 15) 59 | -11/Scrapyard | Entered Materials 106 | -10/Materials | Discovered new exit (range 14) 162 | -10/Materials | Discovered new exit (range 12) 200 | -10/Materials | Entered Mines 215 | -10/Mines | Received a Rocket Launcher from a helpful Derelict 241 | -10/Mines | Discovered new exit (range 8) 276 | -10/Mines | Learned location of 1 exit from Materials 302 | -10/Mines | Build established: Mutant 353 | -10/Mines | Discovered new exit (range 9) 384 | -10/Mines | Learned Materials interactive machine intel 499 | -10/Mines | Assembled infested the area 546 | -10/Mines | Released all parts (5) 552 | -10/Mines | Core integrity fell below 50% 555 | -10/Mines | Deemed a non-threat by the Exiles lab entrance 555 | -10/Mines | Discovered new exit (range 5) 557 | -10/Mines | Entered Exiles 570 | -10/Exiles | Met 8R-AWN 578 | -10/Exiles | Met EX-HEX 595 | -10/Exiles | Met EX-BIN 601 | -10/Exiles | Aligned with FarCom system 601 | -10/Exiles | Given EX-Vault access code 622 | -10/Exiles | Opened EX-Vault 631 | -10/Exiles | Found YOLO Cannon 653 | -10/Exiles | Warned to stay clear of 0b10 Research branches 688 | -10/Exiles | Met EX-DEC 697 | -10/Exiles | Learned location of Zion (-6) 760 | -10/Exiles | Visited The Gauntlet 935 | -10/Exiles | Discovered new exit (range 14) 952 | -10/Exiles | Left Exiles lab with YOLO Cannon 952 | -10/Exiles | Entered Mines 962 | -9/Mines | Self-destructed Last Messages --------------- >>Record "MSG004795-02" I just repaired it not long ago, I think someone on the outside is tampering with our system. --AM-PHS >>Record "MSG004964-01" Who left my Assembled plushie in the Analyzer again?! I'm not erasing this message until I get an answer. --BIN EXIT=FOUND LOCATION=UNKNOWN GOAL=ESCAPE Receiving FarCom transmissions... Searching scrap... Found Seismic Detector. Found ECM Suite. Found Structural Scanner. Found EMP Blaster. Found 51 Matter. Acquired 40 matter. Acquired EMP Blaster. Map ----- +----------------------------------------------------+ | ?????????????????????????????????????? | | ?????????????????????????????????????? | | ?????????????????????????????????????? | | ?????????????????????????????????????? | | ?????????????????????????????????????? | | ??????????????????????????? ?????????? | | ??????????????????????????? ?????????? | | ??????????????????????????? ?????????? | | ??????????????????????????? ?????????? | | ??????????????????????????? #????????? | | ??????????????????????????? #????????? | | ??????????????????????????? #????????? | | ??????????????????????????# #????????? | | ??????????????????????????# #????????? | | ??????????????????????????# #????????? | | ??????????????????????????# #????????? | | ?????????????????????????## #????????? | | ????????????? ############ ##???????? | | ?????????????? ##??????? | | ??????????????????? #??????? | | ????????????????????????# #??????? | | ????????????????????????# ##??????? | | ????????????????????????# ##???????? | | ????????????????????????# ##????????? | | ???????????????????????## #?????????? | | ??????????????????????## @ #?????????? | | ??????????????????????# % #?????????? | | ??????????????????????#!!! #?????????? | | ??????????????????????# ##?????????? | | ??????????????????????# #??????????? | | ??????????????????????# #??????????? | | ??????????????????????# ??????????? | | ??????????????????????## #??????????? | | ???????????????????????####??????????? | | ?????????????????????????????????????? | | ?????????????????????????????????????? | | ?????????????????????????????????????? | | ?????????????????????????????????????? | | ?????????????????????????????????????? | | ?????????????????????????????????????? | | ?????????????????????????????????????? | | ?????????????????????????????????????? | | | | | | | | | | | | | | | | | +----------------------------------------------------+ Best States ------------- Heat Dissipation 39 Energy Generation 10 Energy Capacity 250 Matter Stores 300 Matter Capacity 300 Sight Range 16 Terrain Scan Density 10 Evasion (%) 55 Item Schematics ----------------- None Robot Schematics ------------------ None Fabricated ------------ Nothing Repaired ---------- Nothing Studied --------- None Alien Tech Used ----------------- None Achievements -------------- None Challenges ------------ None Game ------ Seed WardronePersonalProcsplitter Manual? 0 Play Time 00:08:23 Cumulative 110.8 hours Start 2026.06.22 @ 22:40:41 End 2026.06.22 @ 22:57:29 Sessions 1 Manual Loads 0 Difficulty Rogue Special Mode None Game No. 134 Rogue 134 Adventurer 0 Explorer 0 Win Type - Total 1 Types 1/0/0/0/0/0/0/0/0/0 Lore% 74 Gallery% 54 Achievement% 40 Wizard Run 0 Options --------- Layout 1 ASCII 0 Keyboard 0 Movement Mouse Keybinds 0 Fullscreen 2 Font 24/Smallcaps Map View 50x35 Zoom Use 0% Tactical HUD 0 Map Filters NONE Filters NONE Steam 1 RUN: e5bdfa53-e7f5-40b7-9a16-72315a5400da